bitfinex-derivatives/quotes_SOLF0:USTF0_20241203
["timestamp","ask_amount","ask_price","bid_price","bid_amount"]
[1733213088547,68.17451494,227.21,227.19,5.06709367]
[1733213088558,68.17451494,227.21,227.17,0.17960561]
[1733213088572,68.17451494,227.21,227.18,5.06709367]
[1733213088578,2.6385,227.32,227.21,2.2002]
[1733213088585,2.54,227.31,227.21,2.2002]
[1733213088601,2.1996,227.28,227.21,2.2002]
[1733213088905,2.1996,227.28,227.22,2.2001]
[1733213090011,2.1996,227.28,227.19,0.17978973]
[1733213090311,2.1996,227.28,227.23,2.2]
[1733213091267,2.1997,227.27,227.19,0.17978973]
[1733213092161,2.54,227.31,227.2,5.06662342]
[1733213092176,2.54,227.31,227.18,0.17978973]
[1733213092201,2.2,227.23,227.17,2.2005]
[1733213092218,2.54,227.22,227.18,5.06729744]
[1733213092240,2.54,227.22,227.16,2.38038973]
[1733213092241,2.54,227.21,227.16,2.38038973]
[1733213092252,2.54,227.21,227.17,5.06744222]
[1733213092257,2.54,227.21,227.15,0.17978973]
[1733213094988,2.2004,227.2,227.16,5.06749728]
[1733213094994,2.2004,227.2,227.14,0.17978973]
[1733213095016,2.2004,227.2,227.15,5.06797725]
[1733213095025,2.54,227.21,227.14,0.17978973]
[1733213095029,2.2004,227.19,227.15,5.06798537]
[1733213095046,2.54,227.21,227.14,0.17978973]
[1733213095058,2.54,227.21,227.15,5.06802925]
[1733213095065,2.54,227.21,227.13,0.17978973]
[1733213095078,2.54,227.21,227.14,5.06818993]
[1733213095086,2.54,227.21,227.13,0.17978973]
[1733213095114,2.54,227.21,227.14,5.06819813]
[1733213095123,2.54,227.21,227.13,0.17978973]
[1733213095178,1.3727,227.2,227.14,5.06819813]
[1733213095217,1.3727,227.2,227.11,0.17978973]
[1733213095418,1.3727,227.2,227.12,5.06860731]
[1733213095610,2.2008,227.16,227.11,0.17978973]
[1733213095814,2.54,227.15,227.12,5.0686118]
[1733213096014,2.54,227.15,227.1,2.2013]
[1733213096015,2.54,227.15,227.1,2.38108973]
[1733213096317,12.30185093,227.12,227.11,5.24856982]
[1733213098074,12.30185093,227.12,227.11,5.249042]
[1733213098356,14.84185093,227.15,227.11,5.249042]
[1733213098366,14.84185093,227.15,227.12,7.45010165]
[1733213098378,14.84185093,227.15,227.12,2.38136146]
[1733213098389,14.84185093,227.15,227.12,0.18026146]
[1733213098519,14.84185093,227.15,227.03,12.30185093]
[1733213098520,14.84185093,227.15,227.14,0.18026146]
[1733213101212,14.84185093,227.15,227.14,5.24866338]
[1733213101263,2.54,227.15,227.14,7.26930192]
[1733213101287,2.54,227.15,227.14,7.45017566]
[1733213101310,12.30185093,227.18,227.17,2.2006]
[1733213101319,14.84185093,227.18,227.17,2.2006]
[1733213101351,14.84185093,227.18,227.15,0.18117008]
[1733213101352,2.54,227.18,227.15,0.18117008]
[1733213101363,2.54,227.18,227.17,2.2006]
[1733213101515,45.82,227.34,227.17,5.24883359]
[1733213101516,2.54,227.19,227.17,5.24883359]
[1733213101813,2.54,227.19,227.18,7.44924441]
[1733213102117,2.54,227.19,227.18,10.74853279]
[1733213102318,2.54,227.2,227.18,8.54803279]
[1733213103047,12.30185093,227.27,227.19,5.24781892]
[1733213103929,2.54,227.26,227.22,0.18108191]
[1733213104017,2.54,227.26,227.25,2.1998]
[1733213104026,2.54,227.26,227.25,7.26652085]
[1733213104049,2.54,227.26,227.25,5.06672085]
[1733213107166,2.54,227.26,227.25,7.26652085]
[1733213107212,2.54,227.26,227.25,5.06359874]
[1733213107220,2.54,227.26,227.25,3.30126105]
[1733213107249,2.54,227.26,227.25,2.1998]
[1733213107263,2.54,227.26,227.25,1.1012176]
[1733213107293,2.54,227.26,227.18,0.18069821]
[1733213107303,2.54,227.26,227.19,5.06605265]
[1733213107311,2.54,227.26,227.2,3.96473686]
[1733213107336,2.54,227.26,227.21,2.86342106]
[1733213107400,2.54,227.26,227.24,2.1998]
[1733213107424,2.54,227.26,227.19,1.3531]
[1733213107619,12.30185093,227.33,227.2,2.86332928]
[1733213107834,12.30185093,227.33,227.29,2.1994]
[1733213107835,2.54,227.32,227.29,2.1994]
[1733213109667,12.30185093,227.3,227.23,2.2]
[1733213109677,12.30185093,227.3,227.2,1.3775]
[1733213109690,12.30185093,227.3,227.21,2.86313469]
[1733213112465,12.30185093,227.3,227.22,1.10120565]
[1733213112475,12.30185093,227.3,227.27,2.1996]
[1733213112531,12.30185093,227.3,227.26,2.1997]
[1733213112922,12.30185093,227.3,227.27,2.1996]
[1733213113224,12.30185093,227.33,227.2,1.3775]
[1733213113420,12.30185093,227.33,227.21,2.86302779]
[1733213113619,2.54,227.32,227.22,2.86302779]
[1733213113826,2.54,227.32,227.23,2.86302779]
[1733213114020,2.54,227.32,227.31,2.1991]
[1733213115584,2.54,227.36,227.27,12.30185093]
[1733213115606,2.54,227.36,227.35,2.1987]
[1733213115666,2.54,227.36,227.27,12.48254733]
[1733213115667,2.54,227.41,227.3,12.30185093]
[1733213115718,12.30185093,227.5,227.33,12.30185093]
[1733213118644,2.54,227.49,227.36,12.30185093]
[1733213118690,2.54,227.49,227.37,1.10050998]
[1733213118707,2.54,227.49,227.36,12.30185093]
[1733213118708,2.54,227.48,227.39,12.30185093]
[1733213118721,12.30185093,227.53,227.47,2.1976]
[1733213118722,2.54,227.5,227.47,2.1976]
[1733213118740,2.54,227.5,227.36,14.84185093]
[1733213118758,14.84185093,227.5,227.37,1.10034256]
[1733213118765,14.84185093,227.5,227.33,12.30185093]
[1733213118766,12.30185093,227.47,227.38,1.10034256]
[1733213118777,12.30185093,227.44,227.34,2.1987]
[1733213118783,12.30185093,227.48,227.35,2.86080925]
[1733213118784,12.30185093,227.41,227.35,2.86080925]
[1733213118788,12.30185093,227.48,227.31,1.3925]
[1733213118789,12.30185093,227.38,227.31,1.3925]
[1733213118796,2.54,227.37,227.32,2.199]
[1733213119042,2.54,227.37,227.31,1.3925]
[1733213119227,12.30185093,227.35,227.25,1.2636]
[1733213120091,12.30185093,227.35,227.26,5.76269525]
[1733213120678,21.84401931,227.36,227.27,3.3002383]
[1733213120893,21.84401931,227.36,227.28,2.86191958]
[1733213120911,21.84401931,227.36,227.25,1.2636]
[1733213120912,19.64531931,227.36,227.25,1.2636]
[1733213120935,19.64531931,227.36,227.28,2.1994]
[1733213120946,19.64531931,227.36,227.25,1.2636]
[1733213120954,19.64531931,227.36,227.26,2.86234076]
[1733213121126,19.64531931,227.36,227.27,1.10090029]
[1733213123743,19.64531931,227.36,227.28,1.10092043]
[1733213123751,2.54,227.37,227.29,1.10088276]
[1733213123776,2.54,227.37,227.25,1.2636]
[1733213123777,19.64531931,227.44,227.3,1.1008183]
[1733213123786,2.54,227.43,227.31,1.1008183]
[1733213123798,2.54,227.43,227.32,2.86187604]
[1733213123807,2.54,227.43,227.33,1.1008183]
[1733213123808,19.64531931,227.4,227.33,1.1008183]
[1733213123822,19.64531931,227.4,227.25,1.44423787]
[1733213123835,19.64531931,227.4,227.26,8.62799929]
[1733213123841,19.64531931,227.4,227.27,8.62799929]
[1733213123871,19.64531931,227.4,227.28,2.86198924]
[1733213123881,19.64531931,227.4,227.29,2.86198924]
[1733213123890,19.64531931,227.4,227.3,1.10076509]
[1733213123972,19.64531931,227.4,227.25,1.2636]
[1733213124123,19.64531931,227.4,227.33,2.1989]
[1733213124931,19.64531931,227.4,227.25,1.2636]
[1733213125132,19.64531931,227.4,227.26,8.62791785]
[1733213125329,19.64531931,227.4,227.27,8.62765726]
[1733213126508,19.64531931,227.4,227.28,2.86217277]
[1733213126980,19.64531931,227.4,227.29,2.86217277]
[1733213126992,19.64531931,227.4,227.3,1.10083568]
[1733213127012,2.54,227.43,227.25,1.2636]
[1733213127043,2.54,227.43,227.26,9.25780776]
[1733213127063,4.738,227.43,227.35,2.1987]
[1733213127072,2.54,227.43,227.26,0.18020917]
[1733213129883,2.54,227.42,227.27,14.32049399]
[1733213129891,2.54,227.42,227.28,8.62369259]
[1733213129912,2.54,227.42,227.39,2.1983]
[1733213129937,2.54,227.42,227.38,2.1984]
[1733213129964,2.54,227.42,227.28,0.18020917]
[1733213129973,2.54,227.42,227.39,2.1984]
[1733213130428,19.64531931,227.4,227.33,2.1989]
[1733213130628,19.64531931,227.4,227.34,1.10068838]
[1733213130934,19.64531931,227.4,227.33,2.1989]
[1733213131134,21.84361931,227.4,227.33,2.1989]
[1733213131835,21.84361931,227.4,227.34,2.1988]
[1733213132526,2.54,227.42,227.25,21.08912848]
[1733213133573,2.54,227.42,227.27,0.18020917]
[1733213133585,2.54,227.42,227.28,14.49992344]
[1733213133599,2.54,227.42,227.29,14.31971427]
[1733213133611,2.54,227.42,227.3,8.62366667]
[1733213133622,2.54,227.42,227.28,0.18020917]
[1733213133623,2.54,227.42,227.38,2.1984]
[1733213133635,2.54,227.42,227.27,2.54]
[1733213133636,2.54,227.42,227.28,0.18020917]
[1733213133647,2.54,227.42,227.29,5.06334789]
[1733213133830,2.54,227.42,227.3,2.86189228]
[1733213134036,2.54,227.42,227.25,20.90891931]
[1733213134037,2.54,227.42,227.31,2.86189228]
[1733213136424,2.54,227.42,227.32,2.86189228]
[1733213136430,2.54,227.42,227.33,1.1007278]
[1733213136435,2.54,227.42,227.34,1.1007278]
[1733213136458,2.54,227.42,227.27,0.18020917]
[1733213136466,2.54,227.42,227.28,8.62682877]
[1733213136476,2.54,227.42,227.29,8.62682877]
[1733213136481,2.54,227.42,227.3,8.62682877]
[1733213136488,2.54,227.42,227.31,5.06324709]
[1733213136503,2.54,227.42,227.32,2.86183531]
[1733213136512,2.54,227.42,227.33,2.86183531]
[1733213136555,2.54,227.42,227.34,1.10070589]
[1733213136638,2.54,227.42,227.35,1.10070589]
[1733213136855,2.54,227.42,227.27,0.18020917]
[1733213137033,2.54,227.42,227.28,8.62756308]
[1733213137338,4.7381,227.42,227.29,8.62756308]
[1733213137539,2.54,227.42,227.3,2.86187073]
[1733213137747,2.1981,227.41,227.34,2.1987]
[1733213138044,2.1981,227.41,227.26,0.18042716]
[1733213138237,2.1981,227.41,227.27,14.33289671]
[1733213138439,4.738,227.42,227.35,2.1987]
[1733213140277,2.54,227.42,227.37,2.1984]
[1733213140872,12.26871287,227.43,227.32,2.1989]
[1733213140884,2.54,227.42,227.33,2.86175663]
[1733213140891,2.54,227.44,227.34,15.1304695]
[1733213140913,13.58911287,227.49,227.35,8.62875663]
[1733213140914,2.54,227.46,227.35,8.62875663]
[1733213141033,2.54,227.46,227.36,5.06297813]
[1733213143694,13.58911287,227.49,227.46,2.1976]
[1733213143695,1.3204,227.49,227.46,2.1976]
[1733213143700,2.54,227.48,227.46,2.1976]
[1733213143758,2.54,227.48,227.39,0.18042716]
[1733213143765,2.54,227.48,227.47,2.1975]
[1733213143775,2.54,227.48,227.47,3.29777146]
[1733213143809,2.54,227.48,227.47,5.05798617]
[1733213143821,2.54,227.51,227.5,2.1972]
[1733213143890,2.54,227.51,227.5,3.29731388]
[1733213144247,2.54,227.51,227.5,5.05742506]
[1733213144642,1.3518,227.58,227.53,2.197]
[1733213144643,2.54,227.54,227.53,2.197]
[1733213145068,2.54,227.54,227.53,5.05696871]
[1733213146961,2.54,227.54,227.53,2.85996871]
[1733213146978,2.54,227.55,227.53,2.85996871]
[1733213146992,2.54,227.55,227.54,2.85996871]
[1733213147341,2.54,227.55,227.54,5.05676871]
[1733213149719,2.54,227.55,227.54,7.2566149]
[1733213149732,2.54,227.58,227.54,8.61941262]
[1733213149754,2.54,227.58,227.55,5.0598149]
[1733213149770,2.54,227.58,227.56,7.2565149]
[1733213149784,2.54,227.58,227.56,2.1967]
[1733213149812,2.54,227.58,227.57,10.81130357]
[1733213149905,13.59731287,227.64,227.57,10.81130357]
[1733213149906,2.54,227.6,227.57,8.61470357]
[1733213149948,2.54,227.6,227.56,0.18043176]
[1733213150143,13.59731287,227.64,227.58,0.18043176]
[1733213150342,2.54,227.62,227.59,8.61363345]
[1733213150545,2.54,227.62,227.58,0.18043176]
[1733213150843,2.54,227.62,227.59,2.1964]
[1733213155992,2.54,227.62,227.58,0.18015263]
[1733213156025,2.54,227.62,227.59,8.78914531]
[1733213156041,2.54,227.62,227.59,0.18009249]
[1733213156052,2.54,227.62,227.61,2.1962]
[1733213156156,2.54,227.62,227.58,0.18009249]
[1733213156445,2.54,227.62,227.57,0.18009249]
[1733213156653,2.54,227.62,227.58,8.60842446]
[1733213156948,2.54,227.62,227.57,0.18009249]
[1733213157144,2.54,227.62,227.56,0.18009249]
[1733213157352,2.54,227.62,227.57,8.60772918]
[1733213157551,2.54,227.62,227.58,8.60772918]
[1733213157754,2.54,227.62,227.56,0.18009249]
[1733213158054,2.54,227.62,227.58,2.1965]
[1733213158543,2.54,227.62,227.56,0.17993491]
[1733213159088,2.54,227.62,227.57,8.60733415]
[1733213160084,2.54,227.62,227.58,8.60733415]
[1733213160178,2.54,227.62,227.59,5.05885018]
[1733213160192,2.54,227.62,227.56,0.17993491]
[1733213160212,2.52,227.66,227.57,14.45741164]
[1733213160226,2.52,227.66,227.62,2.1961]
[1733213160354,2.52,227.66,227.61,2.1962]
[1733213163001,2.52,227.66,227.62,3.95829299]
[1733213163010,2.52,227.66,227.59,0.17993491]
[1733213163040,2.52,227.66,227.6,8.77860448]
[1733213163049,2.52,227.66,227.61,8.59866957]
[1733213163056,2.52,227.66,227.62,8.59866957]
[1733213163071,2.52,227.66,227.64,2.1958]
[1733213163081,65.50257339,227.68,227.6,0.17993491]
[1733213163082,68.02257339,227.68,227.6,0.17993491]
[1733213163092,68.02257339,227.68,227.62,0.17993491]
[1733213163112,2.52,227.72,227.63,8.59497473]
[1733213163149,2.52,227.72,227.64,5.05722091]
[1733213163159,2.52,227.72,227.62,12.44864778]
[1733213163160,2.52,227.73,227.7,2.1953]
[1733213163237,2.52,227.73,227.63,0.17993491]
[1733213163250,2.52,227.73,227.64,8.77181967]
[1733213163455,2.52,227.73,227.65,8.59188476]
[1733213163758,2.52,227.73,227.68,2.1954]
[1733213164053,2.52,227.73,227.64,0.17993491]
[1733213164251,2.52,227.73,227.65,7.49072294]
[1733213164474,2.52,227.73,227.66,5.05667402]
[1733213164658,2.52,227.73,227.64,0.17993491]
[1733213164659,2.52,227.73,227.69,2.1954]
[1733213165771,2.52,227.73,227.64,0.17993491]
[1733213166214,2.52,227.73,227.65,8.5886015]
[1733213166241,2.52,227.73,227.66,5.05668073]
[1733213166256,2.52,227.73,227.67,5.05668073]
[1733213166272,2.52,227.73,227.69,2.1954]
[1733213166283,2.52,227.73,227.64,0.17993491]
[1733213166360,2.52,227.73,227.65,8.58888662]
[1733213166554,2.52,227.73,227.7,2.1953]
[1733213169065,14.90691287,227.77,227.64,0.17993491]
[1733213169090,1.3654,227.77,227.66,0.17993491]
[1733213169104,2.52,227.76,227.68,0.17993491]
[1733213169115,2.52,227.76,227.7,0.18116064]
[1733213169123,2.52,227.79,227.78,2.1946]
[1733213169138,2.52,227.8,227.72,0.18116064]
[1733213169155,65.45816736,227.84,227.74,12.26871287]
[1733213169156,2.52,227.83,227.74,12.26871287]
[1733213169199,2.52,227.83,227.75,8.76694568]
[1733213169209,65.45816736,227.84,227.76,8.58578504]
[1733213169223,2.52,227.83,227.77,8.58578504]
[1733213169294,2.52,227.83,227.75,0.18116064]
[1733213169374,2.52,227.83,227.76,8.76517344]
[1733213169572,2.52,227.83,227.77,8.5840128]
[1733213169770,14.78871287,227.83,227.75,0.18116064]
[1733213170068,12.26871287,227.8,227.76,8.58457259]
[1733213170269,12.26871287,227.8,227.74,2.37606064]
[1733213170467,2.52,227.83,227.75,8.76495167]
[1733213170468,14.78871287,227.83,227.75,8.76495167]
[1733213172049,14.78871287,227.83,227.74,0.18116064]
[1733213172072,12.26871287,227.83,227.77,2.1947]
[1733213172090,12.26871287,227.83,227.73,0.18116064]
[1733213172091,2.52,227.82,227.73,0.18116064]
[1733213172110,2.52,227.82,227.74,8.76464598]
[1733213172129,65.45816736,227.84,227.75,8.58348534]
[1733213172153,67.97816736,227.84,227.76,14.40760308]
[1733213172179,67.97816736,227.84,227.77,8.76464598]
[1733213174974,67.97816736,227.84,227.78,8.58348534]
[1733213174987,67.97816736,227.84,227.79,8.58348534]
[1733213174992,67.97816736,227.84,227.78,0.18116064]
[1733213175021,67.97816736,227.84,227.79,8.75924584]
[1733213175029,67.97816736,227.84,227.78,0.18116064]
[1733213175036,67.97816736,227.84,227.81,2.1942]
[1733213175183,67.97816736,227.84,227.79,0.18116064]
[1733213175476,67.97816736,227.84,227.78,0.18116064]
[1733213175477,12.26871287,227.83,227.78,0.18116064]
[1733213176278,12.26871287,227.83,227.81,2.1943]
[1733213176485,12.26871287,227.83,227.79,0.18116064]
[1733213178110,12.26871287,227.83,227.78,0.18116064]
[1733213178130,12.26871287,227.83,227.79,14.39805191]
[1733213178162,2.2107905,227.9,227.79,14.39805191]
[1733213178163,2.52,228.02,227.82,12.26871287]
[1733213178190,12.26871287,227.97,227.83,14.39344307]
[1733213178207,12.26871287,227.97,227.84,3.52111074]
[1733213181024,12.26871287,227.97,227.85,16.19492876]
[1733213181032,2.52,227.96,227.92,2.1932]
[1733213181053,12.26871287,227.97,227.92,2.1932]
[1733213181062,2.52,227.96,227.92,2.1932]
[1733213181074,2.52,227.96,227.93,2.1932]
[1733213181137,2.52,227.96,227.9,0.18083816]
[1733213181151,2.52,227.96,227.91,21.4145934]
[1733213181163,2.52,227.96,227.91,0.18083816]
[1733213181279,2.52,227.96,227.9,4.27701911]
[1733213181482,2.52,227.96,227.91,2.37652632]
[1733213181779,2.52,227.96,227.9,4.45726654]
[1733213181988,2.52,227.96,227.91,24.70636791]
[1733213182281,2.52,227.96,227.91,4.45726654]
[1733213183808,2.52,227.96,227.91,6.65056654]
[1733213183837,2.52,227.96,227.91,4.45726654]
[1733213183849,2.52,227.96,227.93,2.1932]
[1733213186819,2.52,227.96,227.92,2.1932]
[1733213186826,2.52,227.96,227.91,4.27701911]
[1733213186841,2.52,227.96,227.92,23.32594347]
[1733213186848,2.52,227.96,227.92,4.27701911]
[1733213186882,2.52,227.96,227.93,2.1932]
[1733213186941,2.52,227.96,227.93,6.47021911]
[1733213187882,2.6518,227.99,227.93,6.47021911]
[1733213188083,5.1718,227.99,227.93,4.27701911]
[1733213188284,5.1718,227.99,227.88,12.26871287]
[1733213188482,2.6518,227.99,227.93,4.27467868]
[1733213190337,2.6518,227.99,227.94,2.193]
[1733213190353,2.6518,227.99,227.92,4.27467868]
[1733213190375,2.6518,227.99,227.93,3.29409235]
[1733213190386,2.6518,227.99,227.93,4.27467868]
[1733213190398,2.6518,227.99,227.95,2.193]
[1733213193223,1.3461,227.99,227.96,2.1929]
[1733213193269,1.3461,227.99,227.95,4.27467868]
[1733213193298,1.3461,227.99,227.95,6.46757868]
[1733213193390,1.3461,227.99,227.94,4.27467868]
[1733213194282,1.3461,227.99,227.95,25.51735532]
[1733213194488,1.3461,227.99,227.95,4.27467868]
[1733213194984,1.3461,227.99,227.94,4.27467868]
[1733213195189,1.3461,227.99,227.92,4.27467868]
[1733213196964,1.3461,227.99,227.96,2.1928]
[1733213197289,1.3461,227.99,227.97,2.1928]
[1733213199868,52.52,228.0,227.97,2.1928]
[1733213199960,50.0,228.0,227.97,2.1928]
[1733213199984,50.0,228.0,227.99,2.1926]
[1733213199997,50.0,228.0,227.96,4.28300218]
[1733213200095,50.0,228.0,227.97,18.00311331]
[1733213200287,50.0,228.0,227.97,2.1928]
[1733213200693,50.0,228.0,227.93,4.28300218]
[1733213200890,50.0,228.0,227.94,25.15612494]
[1733213201094,50.0,228.0,227.95,18.67737783]
[1733213201765,50.0,228.0,227.96,18.67737783]
[1733213201929,50.0,228.0,227.94,4.28300218]
[1733213201930,50.0,228.0,227.97,16.92078189]
[1733213202376,50.0,228.0,227.95,2.193]
[1733213203083,50.0,228.0,227.96,18.68072251]
[1733213203107,50.0,228.0,227.97,16.92413514]
[1733213203137,50.0,228.0,227.94,4.28578139]
[1733213203153,50.0,228.0,227.95,18.6814355]
[1733213203165,50.0,228.0,227.96,18.6814355]
[1733213203196,50.0,228.0,227.97,18.6814355]
[1733213203396,50.0,228.0,227.94,4.28578139]
[1733213203592,50.0,228.0,227.95,25.16890315]
[1733213205915,50.0,228.0,227.94,12.26871287]
[1733213205916,50.0,228.0,227.96,25.16890315]
[1733213205925,50.0,228.0,227.99,2.1927]
[1733213205949,42.09663236,228.0,227.99,20.88014816]
[1733213205963,42.09663236,228.0,227.99,27.36134862]
[1733213206024,42.09663236,228.0,227.99,22.31155387]
[1733213206085,42.09663236,228.0,227.99,27.36028112]
[1733213206398,42.09663236,228.0,227.99,27.36050968]
[1733213206599,42.09663236,228.0,227.99,20.88179973]
[1733213206894,42.09663236,228.0,227.99,18.68670092]
[1733213208524,42.09663236,228.0,227.99,16.93062188]
[1733213209421,42.09663236,228.0,227.99,10.04667732]
[1733213209767,42.09663236,228.0,227.99,11.80302811]
[1733213209791,42.09663236,228.0,227.99,13.99572811]
[1733213209812,42.09663236,228.0,227.99,11.14182792]
[1733213209820,42.09663236,228.0,227.99,13.99588612]
[1733213210098,42.09663236,228.0,227.99,20.81589741]
[1733213210298,42.09663236,228.0,227.99,13.99588612]
[1733213212645,42.09663236,228.0,227.99,20.81440435]
[1733213212687,42.09663236,228.0,227.99,23.00975526]
[1733213212737,42.09663236,228.0,227.99,20.81440435]
[1733213213199,42.09663236,228.0,227.99,23.00975644]
[1733213213403,42.09663236,228.0,227.99,20.81440435]
[1733213214312,42.09663236,228.0,227.99,13.99588612]
[1733213215105,42.09663236,228.0,227.99,20.82994292]
[1733213215305,42.09663236,228.0,227.99,13.99588612]
[1733213216914,42.09663236,228.0,227.99,20.8351136]
[1733213216926,42.09663236,228.0,227.99,13.99588612]
[1733213219819,42.09663236,228.0,227.99,12.23954261]
[1733213219833,42.09663236,228.0,227.99,13.9957615]
[1733213219941,42.09663236,228.0,227.99,6.73238697]
[1733213220011,42.09663236,228.0,227.99,3.29041469]
[1733213220213,42.09663236,228.0,227.99,13.95684797]
[1733213220404,42.09663236,228.0,227.99,21.76578933]
[1733213221109,42.09663236,228.0,227.99,30.81203913]
[1733213221311,42.09663236,228.0,227.99,28.6170101]
[1733213221712,37.33143236,228.0,227.99,28.6170101]
[1733213221913,37.33143236,228.0,227.99,30.81705224]
[1733213222590,37.33143236,228.0,227.99,10.00164136]
[1733213223842,37.33143236,228.0,227.99,30.82509699]
[1733213227087,37.33143236,228.0,227.99,30.82471822]
[1733213227099,35.23413236,228.0,227.99,21.77120654]
[1733213227133,35.23413236,228.0,227.99,23.96591535]
[1733213227217,35.23413236,228.0,227.99,21.77120654]
[1733213227614,2.1908,228.19,227.99,28.62719143]
[1733213227818,7.80894136,228.15,228.07,7.80894136]
[1733213228212,2.5,228.19,228.09,7.80894136]
[1733213228617,7.80894136,228.17,228.09,7.80894136]
[1733213230216,2.5,228.19,228.09,7.80894136]
[1733213232832,3.9918,228.25,228.18,2.1908]
[1733213232853,3.9918,228.25,228.13,7.80894136]
[1733213232854,7.80894136,228.19,228.13,7.80894136]
[1733213233758,7.80894136,228.19,228.18,2.1907]
[1733213234533,2.5,228.2,228.13,7.80894136]
[1733213234743,2.5,228.2,228.15,7.80894136]
[1733213236453,2.5,228.2,228.19,2.1906]
[1733213239537,2.5,228.2,228.16,2.1908]
[1733213239547,7.80894136,228.17,228.16,2.1908]
[1733213239567,2.5,228.2,228.1,7.80894136]
[1733213239585,7.80894136,228.18,228.17,2.1907]
[1733213239638,7.80894136,228.18,228.12,7.80894136]
[1733213239933,2.5,228.2,228.14,7.80894136]
[1733213240135,3.9918,228.25,228.16,7.80894136]
[1733213240429,2.5,228.24,228.16,7.80894136]
[1733213240631,10.30894136,228.24,228.23,2.1902]
[1733213241027,1.3427,228.31,228.2,7.80894136]
[1733213241333,7.80894136,228.27,228.2,7.80894136]
[1733213241952,2.6104,228.31,228.22,7.80894136]
[1733213242793,10.30894136,228.3,228.22,7.80894136]
[1733213242988,2.5,228.3,228.29,2.1896]
[1733213243000,10.30894136,228.3,228.22,7.80894136]
[1733213243029,10.30894136,228.3,228.27,2.1898]
[1733213243037,7.80894136,228.28,228.27,2.1898]
[1733213246074,2.5,228.3,228.24,7.80894136]
[1733213246093,2.5,228.3,228.22,7.80894136]
[1733213246111,2.5,228.3,228.27,2.1898]
[1733213246122,1.3579,228.33,228.22,7.80894136]
[1733213246133,7.80894136,228.3,228.22,7.80894136]
[1733213246195,7.80894136,228.3,228.28,2.1897]
[1733213246263,1.3579,228.33,228.24,7.80894136]
[1733213246437,1.3579,228.33,228.28,2.1897]
[1733213246636,1.3579,228.33,228.26,7.80894136]
[1733213246830,7.80894136,228.34,228.28,7.80894136]
[1733213247338,3.7677,228.36,228.28,7.80894136]
[1733213247542,3.7677,228.36,228.24,2.5]
[1733213248009,3.7677,228.36,228.35,2.189]
[1733213248892,2.5,228.39,228.3,7.80894136]
[1733213249360,7.80894136,228.38,228.32,2.1893]
[1733213249375,7.80894136,228.38,228.3,7.80894136]
[1733213249415,10.30894136,228.4,228.38,2.1887]
[1733213249421,10.30894136,228.4,228.32,7.80894136]
[1733213249422,2.5,228.4,228.32,7.80894136]
[1733213249639,2.6818,228.41,228.3,2.5]
[1733213252158,2.6818,228.41,228.4,2.1885]
[1733213252218,104.60877075,228.43,228.32,12.16131116]
[1733213253345,104.60877075,228.43,228.41,2.1884]
[1733213255112,104.60877075,228.43,228.42,2.1884]
[1733213255113,2.5,228.43,228.42,2.1884]
[1733213255939,1.2791,228.46,228.42,2.1884]
[1733213256140,3.7791,228.46,228.42,2.1884]
[1733213258540,3.7791,228.46,228.36,2.1889]
[1733213258546,3.7791,228.46,228.35,12.16131116]
[1733213258557,3.7791,228.46,228.42,2.1883]
[1733213258564,3.7791,228.46,228.35,12.16131116]
[1733213258583,3.7791,228.46,228.43,2.1882]
[1733213258616,3.7791,228.46,228.35,12.16131116]
[1733213258621,3.7791,228.46,228.44,2.1882]
[1733213258631,3.7791,228.46,228.35,12.16131116]
[1733213258650,3.7791,228.46,228.36,4.46302808]
[1733213258848,3.7791,228.46,228.37,3.36733717]
[1733213259146,3.7791,228.46,228.35,12.16131116]
[1733213259346,3.7791,228.46,228.36,9.84979099]
[1733213259551,3.7791,228.46,228.45,2.1881]
[1733213265943,2.5,228.46,228.45,2.1881]
[1733213266008,2.6867,228.51,228.38,12.16131116]